[Event "*** Titled Tuesday Blitz"]
[Site "Chess.com"]
[Date "2021.02.02"]
[Round "3"]
[White "esapunov"]
[Black "ElGasanov"]
[Result "0-1"]
[WhiteElo "2602"]
[BlackElo "2820"]
[TimeControl "180+1"]
[EndTime "10:32:36 PST"]
[Termination "ElGasanov won by resignation"]

1. c4 {[%clk 0:03:00.9]} 1... e6 {[%clk 0:02:53.2]} 2. Nf3 {[%clk 0:03:00.6]}
2... d5 {[%clk 0:02:54.1]} 3. d4 {[%clk 0:03:00.5]} 3... Nf6 {[%clk 0:02:51.4]}
4. Nc3 {[%clk 0:03:00.3]} 4... c6 {[%clk 0:02:48.9]} 5. Bg5 {[%clk 0:02:59.7]}
5... h6 {[%clk 0:02:47.3]} 6. Bxf6 {[%clk 0:02:48.8]} 6... Qxf6 {[%clk
0:02:48.2]} 7. e3 {[%clk 0:02:49.3]} 7... g6 {[%clk 0:02:46.8]} 8. Bd3 {[%clk
0:02:46.9]} 8... Bg7 {[%clk 0:02:44.8]} 9. O-O {[%clk 0:02:46.9]} 9... Nd7
{[%clk 0:02:38.9]} 10. e4 {[%clk 0:02:40.9]} 10... dxc4 {[%clk 0:02:38.9]} 11.
e5 {[%clk 0:02:40.7]} 11... Qe7 {[%clk 0:02:34.4]} 12. Bxc4 {[%clk 0:02:40.4]}
12... O-O {[%clk 0:02:25.8]} 13. Re1 {[%clk 0:02:40.1]} 13... b5 {[%clk
0:02:17.6]} 14. Bd3 {[%clk 0:02:33.7]} 14... b4 {[%clk 0:02:15.9]} 15. Ne4
{[%clk 0:02:32.9]} 15... c5 {[%clk 0:02:16]} 16. Nxc5 {[%clk 0:02:05.4]} 16...
Nxc5 {[%clk 0:02:14.8]} 17. dxc5 {[%clk 0:02:05.6]} 17... Qxc5 {[%clk
0:02:12.2]} 18. Be4 {[%clk 0:02:02.6]} 18... Rb8 {[%clk 0:02:07.8]} 19. Qe2
{[%clk 0:01:58.7]} 19... Bb7 {[%clk 0:01:58.7]} 20. Rac1 {[%clk 0:01:54.1]}
20... Qa5 {[%clk 0:01:53.9]} 21. Bxb7 {[%clk 0:01:53.7]} 21... Rxb7 {[%clk
0:01:54.8]} 22. b3 {[%clk 0:01:54]} 22... Rd8 {[%clk 0:01:50.1]} 23. h4 {[%clk
0:01:53.9]} 23... Rbd7 {[%clk 0:01:44.1]} 24. Rc2 {[%clk 0:01:48.1]} 24... Rd5
{[%clk 0:01:39.7]} 25. g3 {[%clk 0:01:44.3]} 25... Qb5 {[%clk 0:01:35.3]} 26.
Qe4 {[%clk 0:01:36.2]} 26... Rd1 {[%clk 0:01:25.2]} 27. Rc1 {[%clk 0:01:31.6]}
27... R1d5 {[%clk 0:01:16.5]} 28. Kg2 {[%clk 0:01:24.7]} 28... a5 {[%clk
0:01:15.7]} 29. Rc7 {[%clk 0:01:22]} 29... R8d7 {[%clk 0:01:13]} 30. Rxd7 {[%clk
0:01:16.8]} 30... Rxd7 {[%clk 0:01:08.8]} 31. Rc1 {[%clk 0:01:15.6]} 31... Qd5
{[%clk 0:01:05]} 32. Qf4 {[%clk 0:00:57.1]} 32... Qd3 {[%clk 0:00:57.2]} 33. Rc4
{[%clk 0:00:45]} 33... Bf8 {[%clk 0:00:49.5]} 34. Nh2 {[%clk 0:00:36.2]} 34...
Qd5+ {[%clk 0:00:44.2]} 35. Re4 {[%clk 0:00:28.3]} 35... Bg7 {[%clk 0:00:40]}
36. Ng4 {[%clk 0:00:28]} 36... h5 {[%clk 0:00:38.9]} 37. Nf6+ {[%clk 0:00:28.2]}
37... Bxf6 {[%clk 0:00:39.3]} 38. exf6 {[%clk 0:00:28.7]} 38... Qa8 {[%clk
0:00:35.7]} 39. Kh2 {[%clk 0:00:23.6]} 39... Rd5 {[%clk 0:00:28.6]} 40. Rc4
{[%clk 0:00:19.1]} 40... Rf5 {[%clk 0:00:25.4]} 41. Qd4 {[%clk 0:00:19.2]} 41...
e5 {[%clk 0:00:24.7]} 42. Qb6 {[%clk 0:00:17.7]} 42... Qf3 {[%clk 0:00:19.2]}
43. Kg1 {[%clk 0:00:16.8]} 43... Qd1+ {[%clk 0:00:18.9]} 44. Kg2 {[%clk
0:00:17]} 44... Qd5+ {[%clk 0:00:18.5]} 45. Kg1 {[%clk 0:00:17.2]} 45... Qd1+
{[%clk 0:00:18.4]} 46. Kg2 {[%clk 0:00:17.6]} 46... Qf3+ {[%clk 0:00:18.6]} 47.
Kg1 {[%clk 0:00:17.6]} 47... Rxf6 {[%clk 0:00:19.5]} 48. Qc5 {[%clk 0:00:13.6]}
48... Kg7 {[%clk 0:00:16.8]} 49. Rc1 {[%clk 0:00:12.2]} 49... e4 {[%clk
0:00:16.5]} 50. Re1 {[%clk 0:00:12.1]} 50... Kh7 {[%clk 0:00:14.5]} 51. Qd4
{[%clk 0:00:11.9]} 51... Re6 {[%clk 0:00:14.6]} 52. Re3 {[%clk 0:00:11]} 52...
Qf5 {[%clk 0:00:14.1]} 53. Re1 {[%clk 0:00:10.2]} 53... Re5 {[%clk 0:00:14.6]}
54. Rc1 {[%clk 0:00:10]} 54... Rd5 {[%clk 0:00:14.4]} 55. Qe3 {[%clk 0:00:09.9]}
55... Rd3 {[%clk 0:00:14.7]} 56. Qe2 {[%clk 0:00:10.1]} 56... e3 {[%clk
0:00:15.3]} 57. Rf1 {[%clk 0:00:09]} 57... exf2+ {[%clk 0:00:14.3]} 58. Qxf2
{[%clk 0:00:09.5]} 58... Qxf2+ {[%clk 0:00:13.4]} 59. Rxf2 {[%clk 0:00:09.9]}
59... Rxg3+ {[%clk 0:00:12.3]} 60. Kh2 {[%clk 0:00:10.2]} 60... Rg4 {[%clk
0:00:09.1]} 61. Rxf7+ {[%clk 0:00:10.2]} 61... Kg8 {[%clk 0:00:09.8]} 62. Ra7
{[%clk 0:00:09.9]} 62... Rxh4+ {[%clk 0:00:10]} 63. Kg3 {[%clk 0:00:08.5]} 63...
Rg4+ {[%clk 0:00:10.9]} 64. Kf3 {[%clk 0:00:08.6]} 64... Rg5 {[%clk 0:00:11.8]}
65. Kf4 {[%clk 0:00:07.5]} 65... Rf5+ {[%clk 0:00:12.2]} 66. Ke4 {[%clk
0:00:07.9]} 66... h4 {[%clk 0:00:12.4]} 67. Rd7 {[%clk 0:00:08.1]} 67... Rh5
{[%clk 0:00:11.8]} 68. Kf4 {[%clk 0:00:06.6]} 68... h3 {[%clk 0:00:11.9]} 0-1

[Event "*** Titled Tuesday Blitz"]
[Site "Chess.com"]
[Date "2021.02.02"]
[Round "3"]
[White "Bulldog167"]
[Black "scarabee43"]
[Result "1-0"]
[WhiteElo "2810"]
[BlackElo "2591"]
[TimeControl "180+1"]
[EndTime "10:32:37 PST"]
[Termination "Bulldog167 won by resignation"]

1. d4 {[%clk 0:03:00.9]} 1... Nf6 {[%clk 0:02:59.8]} 2. c4 {[%clk 0:03:00.8]}
2... e6 {[%clk 0:02:59]} 3. g3 {[%clk 0:03:01.3]} 3... d5 {[%clk 0:02:58.1]} 4.
Bg2 {[%clk 0:03:01.6]} 4... Be7 {[%clk 0:02:58.3]} 5. Nf3 {[%clk 0:03:01.9]}
5... O-O {[%clk 0:02:58.1]} 6. Nc3 {[%clk 0:03:00.1]} 6... b6 {[%clk 0:02:55.8]}
7. cxd5 {[%clk 0:02:52.3]} 7... exd5 {[%clk 0:02:50.6]} 8. O-O {[%clk
0:02:51.7]} 8... Bb7 {[%clk 0:02:47.2]} 9. Bg5 {[%clk 0:02:47.8]} 9... Nbd7
{[%clk 0:02:45]} 10. Ne5 {[%clk 0:02:38.9]} 10... h6 {[%clk 0:02:41]} 11. Bxf6
{[%clk 0:02:38.1]} 11... Nxf6 {[%clk 0:02:38.5]} 12. Qa4 {[%clk 0:02:21.7]}
12... Bd6 {[%clk 0:02:18.7]} 13. Rfd1 {[%clk 0:02:14.7]} 13... Qe8 {[%clk
0:02:12]} 14. Qxe8 {[%clk 0:02:02.2]} 14... Rfxe8 {[%clk 0:02:11.4]} 15. f4
{[%clk 0:02:02.1]} 15... c5 {[%clk 0:01:51.6]} 16. dxc5 {[%clk 0:01:22.1]} 16...
Bxc5+ {[%clk 0:01:23.7]} 17. Kh1 {[%clk 0:01:22.2]} 17... Rad8 {[%clk
0:01:13.5]} 18. Nb5 {[%clk 0:01:09.1]} 18... a6 {[%clk 0:01:04.8]} 19. Nd4
{[%clk 0:01:09.1]} 19... Nd7 {[%clk 0:00:54.3]} 20. Nxd7 {[%clk 0:01:04.3]}
20... Rxd7 {[%clk 0:00:53.7]} 21. Bf3 {[%clk 0:01:04.3]} 21... Kf8 {[%clk
0:00:50.7]} 22. Rac1 {[%clk 0:01:02.8]} 22... Rc8 {[%clk 0:00:47.6]} 23. Bg4
{[%clk 0:00:55.5]} 23... Rdc7 {[%clk 0:00:45.4]} 24. Bxc8 {[%clk 0:00:55.4]}
24... Rxc8 {[%clk 0:00:45.7]} 25. Kg2 {[%clk 0:00:40.1]} 25... g6 {[%clk
0:00:44.7]} 26. Kf3 {[%clk 0:00:40]} 26... Ke7 {[%clk 0:00:42.9]} 27. b4 {[%clk
0:00:38.7]} 27... Bd6 {[%clk 0:00:37.8]} 28. Rxc8 {[%clk 0:00:38.9]} 28... Bxc8
{[%clk 0:00:38.4]} 29. a3 {[%clk 0:00:38.3]} 29... a5 {[%clk 0:00:35.8]} 30.
bxa5 {[%clk 0:00:36.9]} 30... bxa5 {[%clk 0:00:35.8]} 31. a4 {[%clk 0:00:36.2]}
31... Bd7 {[%clk 0:00:34.8]} 32. Nb5 {[%clk 0:00:36.2]} 32... Bb4 {[%clk
0:00:34.5]} 33. e3 {[%clk 0:00:24.4]} 33... h5 {[%clk 0:00:30.8]} 34. Kf2 {[%clk
0:00:23.9]} 34... Bc6 {[%clk 0:00:28.4]} 35. Rc1 {[%clk 0:00:20.5]} 35... Kd7
{[%clk 0:00:26.4]} 36. h3 {[%clk 0:00:19.4]} 36... f5 {[%clk 0:00:22.5]} 37. Ke2
{[%clk 0:00:16.6]} 37... Be7 {[%clk 0:00:20]} 38. Kd3 {[%clk 0:00:15.9]} 38...
Bf6 {[%clk 0:00:19.8]} 39. Rc2 {[%clk 0:00:08.5]} 39... Bg7 {[%clk 0:00:19.2]}
40. Rc1 {[%clk 0:00:05.9]} 40... Bf6 {[%clk 0:00:19.1]} 41. Rg1 {[%clk
0:00:06.5]} 41... Ke7 {[%clk 0:00:13.5]} 42. g4 {[%clk 0:00:07]} 42... Bd7
{[%clk 0:00:11.1]} 43. gxh5 {[%clk 0:00:07.1]} 43... gxh5 {[%clk 0:00:10.7]} 44.
Rg8 {[%clk 0:00:07.2]} 44... Be8 {[%clk 0:00:08.9]} 45. Nc7 {[%clk 0:00:03.8]}
45... Bxa4 {[%clk 0:00:08.2]} 46. Nxd5+ {[%clk 0:00:04.1]} 46... Kf7 {[%clk
0:00:07.7]} 47. Nxf6 {[%clk 0:00:04.8]} 47... Kxf6 {[%clk 0:00:07.9]} 48. Ra8
{[%clk 0:00:05.4]} 48... Bb5+ {[%clk 0:00:07.6]} 49. Kd4 {[%clk 0:00:05.6]}
49... a4 {[%clk 0:00:08.1]} 50. Ra5 {[%clk 0:00:06.2]} 50... Bd7 {[%clk
0:00:07.6]} 51. h4 {[%clk 0:00:04.5]} 51... Ke6 {[%clk 0:00:07]} 52. Ra6+ {[%clk
0:00:04.7]} 52... Ke7 {[%clk 0:00:07.1]} 53. Ke5 {[%clk 0:00:05.1]} 53... Kd8
{[%clk 0:00:07.5]} 54. Kd6 {[%clk 0:00:05.1]} 54... Kc8 {[%clk 0:00:06.5]} 55.
Ra7 {[%clk 0:00:04.2]} 55... Bb5 {[%clk 0:00:05.9]} 56. Ra5 {[%clk 0:00:04.5]}
56... Bd7 {[%clk 0:00:05.8]} 57. Rc5+ {[%clk 0:00:04.4]} 57... Kd8 {[%clk
0:00:05.8]} 58. Rc7 {[%clk 0:00:05.1]} 58... Bb5 {[%clk 0:00:03.8]} 59. Rb7
{[%clk 0:00:05.5]} 59... Ba6 {[%clk 0:00:03.4]} 60. Rb8+ {[%clk 0:00:06]} 60...
Bc8 {[%clk 0:00:04.1]} 61. Ra8 {[%clk 0:00:06.7]} 61... a3 {[%clk 0:00:04.4]}
62. Rxa3 {[%clk 0:00:07.4]} 62... Bb7 {[%clk 0:00:04.5]} 63. Ra5 {[%clk
0:00:07.4]} 63... Be4 {[%clk 0:00:03.3]} 64. Ke6 {[%clk 0:00:08]} 64... Ke8
{[%clk 0:00:03.6]} 65. Rxf5 {[%clk 0:00:08.7]} 65... Bxf5+ {[%clk 0:00:04.2]}
66. Kxf5 {[%clk 0:00:09.6]} 1-0

[Event "*** Titled Tuesday Blitz"]
[Site "Chess.com"]
[Date "2021.02.02"]
[Round "3"]
[White "BrandonJacobson"]
[Black "Orest_Vovk"]
[Result "1/2-1/2"]
[WhiteElo "2840"]
[BlackElo "2469"]
[TimeControl "180+1"]
[EndTime "10:32:51 PST"]
[Termination "Game drawn - insufficient material"]

1. d4 {[%clk 0:03:00.9]} 1... e5 {[%clk 0:02:57]} 2. c4 {[%clk 0:03:01.4]} 2...
exd4 {[%clk 0:02:55.3]} 3. Nf3 {[%clk 0:03:02]} 3... Nc6 {[%clk 0:02:55.2]} 4.
Nxd4 {[%clk 0:03:02.4]} 4... Nxd4 {[%clk 0:02:55.1]} 5. Qxd4 {[%clk 0:03:03.3]}
5... Qf6 {[%clk 0:02:54.9]} 6. Qxf6 {[%clk 0:02:47.4]} 6... Nxf6 {[%clk
0:02:53.4]} 7. Nc3 {[%clk 0:02:48.3]} 7... Bb4 {[%clk 0:02:52.8]} 8. Bd2 {[%clk
0:02:48.7]} 8... O-O {[%clk 0:02:47]} 9. Nb5 {[%clk 0:02:37.7]} 9... Bxd2+
{[%clk 0:02:40.6]} 10. Kxd2 {[%clk 0:02:38.6]} 10... c6 {[%clk 0:02:36.1]} 11.
Nd6 {[%clk 0:02:38.4]} 11... Ne8 {[%clk 0:02:31.3]} 12. Nxe8 {[%clk 0:02:21.9]}
12... Rxe8 {[%clk 0:02:30.8]} 13. Rd1 {[%clk 0:02:22.6]} 13... d5 {[%clk
0:02:21.5]} 14. cxd5 {[%clk 0:02:22.1]} 14... cxd5 {[%clk 0:02:20.5]} 15. e3
{[%clk 0:02:06.6]} 15... Be6 {[%clk 0:02:15.9]} 16. a3 {[%clk 0:01:50.1]} 16...
d4 {[%clk 0:01:44.9]} 17. exd4 {[%clk 0:01:38.7]} 17... Rad8 {[%clk 0:01:44.4]}
18. Kc1 {[%clk 0:00:55.9]} 18... Bf5 {[%clk 0:00:47.1]} 19. Bd3 {[%clk 0:00:53]}
19... Bxd3 {[%clk 0:00:43.8]} 20. Rxd3 {[%clk 0:00:53.9]} 20... Re2 {[%clk
0:00:42.9]} 21. Rf1 {[%clk 0:00:48.7]} 21... Rc8+ {[%clk 0:00:27.5]} 22. Rc3
{[%clk 0:00:48.3]} 22... Rxc3+ {[%clk 0:00:27.3]} 23. bxc3 {[%clk 0:00:48.6]}
23... Ra2 {[%clk 0:00:28]} 24. Re1 {[%clk 0:00:42.3]} 24... Kf8 {[%clk
0:00:25.3]} 25. d5 {[%clk 0:00:19.8]} 25... Rxf2 {[%clk 0:00:15.3]} 26. d6
{[%clk 0:00:19.5]} 26... Ra2 {[%clk 0:00:07.9]} 27. Kb1 {[%clk 0:00:17.2]} 27...
Rd2 {[%clk 0:00:07.3]} 28. Re4 {[%clk 0:00:13]} 28... Rxd6 {[%clk 0:00:07.1]}
29. Kc2 {[%clk 0:00:13.1]} 29... b6 {[%clk 0:00:07.1]} 30. a4 {[%clk 0:00:13.3]}
30... a5 {[%clk 0:00:07.4]} 31. Rc4 {[%clk 0:00:12.6]} 31... Rd7 {[%clk
0:00:05.8]} 32. Rc8+ {[%clk 0:00:12.2]} 32... Ke7 {[%clk 0:00:05.8]} 33. c4
{[%clk 0:00:12.9]} 33... Rb7 {[%clk 0:00:05.8]} 34. Kd3 {[%clk 0:00:13]} 34...
Kd7 {[%clk 0:00:06.3]} 35. Rg8 {[%clk 0:00:13.3]} 35... g6 {[%clk 0:00:06.2]}
36. Rg7 {[%clk 0:00:13.9]} 36... Ke6 {[%clk 0:00:06.4]} 37. Rxh7 {[%clk
0:00:14.3]} 37... Rd7+ {[%clk 0:00:07]} 38. Kc3 {[%clk 0:00:14.6]} 38... Rd1
{[%clk 0:00:07.4]} 39. Rh8 {[%clk 0:00:14.6]} 39... Ra1 {[%clk 0:00:06.9]} 40.
Kb3 {[%clk 0:00:14.2]} 40... Rb1+ {[%clk 0:00:07.1]} 41. Kc3 {[%clk 0:00:14.8]}
41... Rc1+ {[%clk 0:00:07.1]} 42. Kd3 {[%clk 0:00:12.3]} 42... Ra1 {[%clk
0:00:06.5]} 43. Rb8 {[%clk 0:00:11.5]} 43... Rxa4 {[%clk 0:00:06.5]} 44. Kd4
{[%clk 0:00:10]} 44... Ra2 {[%clk 0:00:06.1]} 45. Rxb6+ {[%clk 0:00:10]} 45...
Ke7 {[%clk 0:00:06.5]} 46. Rb7+ {[%clk 0:00:10.5]} 46... Ke6 {[%clk 0:00:06.9]}
47. g4 {[%clk 0:00:08.1]} 47... Rxh2 {[%clk 0:00:06.4]} 48. Rb6+ {[%clk
0:00:08.6]} 48... Ke7 {[%clk 0:00:05.9]} 49. c5 {[%clk 0:00:09.1]} 49... Rh4
{[%clk 0:00:05.4]} 50. Kd5 {[%clk 0:00:08.9]} 50... Rxg4 {[%clk 0:00:05.3]} 51.
Rb7+ {[%clk 0:00:09.6]} 51... Kf6 {[%clk 0:00:05.4]} 52. c6 {[%clk 0:00:10.1]}
52... Rg5+ {[%clk 0:00:03.3]} 53. Kd6 {[%clk 0:00:10.4]} 53... Rg1 {[%clk
0:00:02.2]} 54. Rb5 {[%clk 0:00:10.7]} 54... Rc1 {[%clk 0:00:01.8]} 55. Rc5
{[%clk 0:00:11.1]} 55... Rd1+ {[%clk 0:00:02.1]} 56. Kc7 {[%clk 0:00:08]} 56...
Re1 {[%clk 0:00:02.3]} 57. Kb7 {[%clk 0:00:06.5]} 57... Re7+ {[%clk 0:00:02.1]}
58. c7 {[%clk 0:00:06.6]} 58... g5 {[%clk 0:00:02.4]} 59. Kb8 {[%clk 0:00:06.9]}
59... Rxc7 {[%clk 0:00:02.6]} 60. Kxc7 {[%clk 0:00:07.8]} 60... g4 {[%clk
0:00:03.1]} 61. Kd6 {[%clk 0:00:08.1]} 61... a4 {[%clk 0:00:02.5]} 62. Ra5
{[%clk 0:00:08.1]} 62... g3 {[%clk 0:00:02.6]} 63. Rxa4 {[%clk 0:00:08.4]} 63...
Kf5 {[%clk 0:00:03.5]} 64. Kd5 {[%clk 0:00:08.3]} 64... g2 {[%clk 0:00:03.3]}
65. Ra1 {[%clk 0:00:07.4]} 65... Kf4 {[%clk 0:00:03.7]} 66. Kd4 {[%clk
0:00:06.5]} 66... Kf3 {[%clk 0:00:04.2]} 67. Ke5 {[%clk 0:00:07]} 67... Kf2
{[%clk 0:00:04.3]} 68. Kf4 {[%clk 0:00:05]} 68... g1=Q {[%clk 0:00:03.7]} 69.
Ra2+ {[%clk 0:00:05.3]} 69... Kf1 {[%clk 0:00:02.9]} 70. Ra1+ {[%clk 0:00:03.9]}
70... Kg2 {[%clk 0:00:03.2]} 71. Rxg1+ {[%clk 0:00:04.6]} 71... Kxg1 {[%clk
0:00:04.1]} 72. Kf5 {[%clk 0:00:05.5]} 72... Kf2 {[%clk 0:00:04.3]} 73. Kf6
{[%clk 0:00:06.4]} 73... Kf3 {[%clk 0:00:05.2]} 74. Kxf7 {[%clk 0:00:07.3]}
1/2-1/2

[Event "*** Titled Tuesday Blitz"]
[Site "Chess.com"]
[Date "2021.02.02"]
[Round "3"]
[White "ZenBull"]
[Black "Savagelittlemole"]
[Result "0-1"]
[WhiteElo "2228"]
[BlackElo "2452"]
[TimeControl "180+1"]
[EndTime "10:32:56 PST"]
[Termination "Savagelittlemole won by resignation"]

1. Nf3 {[%clk 0:03:00.9]} 1... Nf6 {[%clk 0:02:58.4]} 2. c4 {[%clk 0:03:00]}
2... g6 {[%clk 0:02:57.9]} 3. Nc3 {[%clk 0:02:59.9]} 3... Bg7 {[%clk 0:02:58.8]}
4. e4 {[%clk 0:03:00.4]} 4... O-O {[%clk 0:02:58.6]} 5. d4 {[%clk 0:03:01.3]}
5... d6 {[%clk 0:02:58.5]} 6. h3 {[%clk 0:03:02.2]} 6... e5 {[%clk 0:02:56.3]}
7. d5 {[%clk 0:03:01.2]} 7... Na6 {[%clk 0:02:54.9]} 8. Bg5 {[%clk 0:02:58.7]}
8... Qe8 {[%clk 0:02:51]} 9. g4 {[%clk 0:02:57.2]} 9... Nc5 {[%clk 0:02:50.6]}
10. Nd2 {[%clk 0:02:56.8]} 10... a5 {[%clk 0:02:50.1]} 11. Be2 {[%clk
0:02:54.7]} 11... Nfd7 {[%clk 0:02:48.2]} 12. Rg1 {[%clk 0:02:51.4]} 12... Kh8
{[%clk 0:02:47.2]} 13. Qc2 {[%clk 0:02:49.4]} 13... Nb6 {[%clk 0:02:37.9]} 14.
Nb3 {[%clk 0:02:46.7]} 14... Nxb3 {[%clk 0:02:36]} 15. axb3 {[%clk 0:02:47.6]}
15... f5 {[%clk 0:02:34.3]} 16. f3 {[%clk 0:02:32]} 16... fxe4 {[%clk
0:02:26.1]} 17. Nxe4 {[%clk 0:02:30.1]} 17... a4 {[%clk 0:02:22.9]} 18. b4
{[%clk 0:02:23]} 18... Rf4 {[%clk 0:02:16.8]} 19. Bh4 {[%clk 0:01:51.9]} 19...
Qf8 {[%clk 0:02:11.3]} 20. Qd3 {[%clk 0:01:48.4]} 20... Bf5 {[%clk 0:01:59.7]}
21. gxf5 {[%clk 0:01:40.3]} 21... Rxh4 {[%clk 0:01:59.6]} 22. fxg6 {[%clk
0:01:39.6]} 22... h6 {[%clk 0:01:47]} 23. Rg3 {[%clk 0:01:32]} 23... Qf4 {[%clk
0:01:36.3]} 24. Qd2 {[%clk 0:01:28]} 24... Qf5 {[%clk 0:01:24.6]} 25. Ra3 {[%clk
0:01:20.5]} 25... Rxh3 {[%clk 0:01:21.5]} 26. Rxh3 {[%clk 0:01:13.3]} 26... Qxh3
{[%clk 0:01:22.4]} 27. Qe3 {[%clk 0:01:10.2]} 27... Rf8 {[%clk 0:01:14.8]} 28.
Kd2 {[%clk 0:01:08.7]} 28... Qh2 {[%clk 0:01:09]} 29. Kd3 {[%clk 0:00:55.2]}
29... Qg2 {[%clk 0:00:56.5]} 30. Ra1 {[%clk 0:00:54.1]} 30... Qxg6 {[%clk
0:00:55.9]} 31. Rg1 {[%clk 0:00:53.1]} 31... Qf5 {[%clk 0:00:53.4]} 32. Kd2
{[%clk 0:00:45.5]} 32... Nd7 {[%clk 0:00:49.1]} 33. Rg3 {[%clk 0:00:39.9]} 33...
Nf6 {[%clk 0:00:47.5]} 34. Bd3 {[%clk 0:00:38.7]} 34... Nxe4+ {[%clk 0:00:43.8]}
35. Bxe4 {[%clk 0:00:38.8]} 35... Qf4 {[%clk 0:00:38.3]} 36. Rh3 {[%clk
0:00:27.7]} 36... Qxe3+ {[%clk 0:00:37.2]} 37. Kxe3 {[%clk 0:00:27.4]} 37... Ra8
{[%clk 0:00:35.6]} 38. Bd3 {[%clk 0:00:10.2]} 38... a3 {[%clk 0:00:34.3]} 39.
bxa3 {[%clk 0:00:09.9]} 39... Rxa3 {[%clk 0:00:35.2]} 40. Ke4 {[%clk 0:00:10.3]}
40... Rb3 {[%clk 0:00:30.6]} 41. b5 {[%clk 0:00:09.7]} 41... Kg8 {[%clk
0:00:28.9]} 42. Rg3 {[%clk 0:00:06.7]} 42... Kf7 {[%clk 0:00:28]} 43. Rg4 {[%clk
0:00:05.7]} 43... Bf6 {[%clk 0:00:20.3]} 44. Rg2 {[%clk 0:00:04.3]} 44... Bg5
{[%clk 0:00:20]} 45. Rh2 {[%clk 0:00:04.3]} 45... Ra3 {[%clk 0:00:18.2]} 46. Rg2
{[%clk 0:00:03.9]} 46... Kf6 {[%clk 0:00:18]} 47. Rh2 {[%clk 0:00:04.3]} 47...
Ra1 {[%clk 0:00:17.9]} 48. Be2 {[%clk 0:00:03.6]} 48... Rc1 {[%clk 0:00:17.1]}
49. Bd3 {[%clk 0:00:03.8]} 49... Re1+ {[%clk 0:00:17.1]} 50. Be2 {[%clk
0:00:03.9]} 50... Rg1 {[%clk 0:00:16.1]} 51. Kd3 {[%clk 0:00:03]} 51... Rg3
{[%clk 0:00:15.9]} 52. Ke4 {[%clk 0:00:02]} 52... Rg1 {[%clk 0:00:15.7]} 53. Bd3
{[%clk 0:00:02]} 53... Kg6 {[%clk 0:00:15.3]} 54. Be2 {[%clk 0:00:01.7]} 54...
Kg7 {[%clk 0:00:15.6]} 55. Bd3 {[%clk 0:00:01.2]} 55... Kf6 {[%clk 0:00:16.5]}
56. Be2 {[%clk 0:00:01.8]} 56... Rc1 {[%clk 0:00:16.9]} 57. Bd3 {[%clk
0:00:02.7]} 57... Re1+ {[%clk 0:00:16.9]} 58. Be2 {[%clk 0:00:03.6]} 58... Kg6
{[%clk 0:00:17]} 59. Kd3 {[%clk 0:00:03.9]} 59... h5 {[%clk 0:00:17.4]} 60. Ke4
{[%clk 0:00:04.8]} 60... h4 {[%clk 0:00:17.3]} 61. Rh3 {[%clk 0:00:05.7]} 61...
Rg1 {[%clk 0:00:16.6]} 62. Kd3 {[%clk 0:00:06.6]} 62... Kf5 {[%clk 0:00:16.5]}
63. Kc2 {[%clk 0:00:04.1]} 63... Rg2 {[%clk 0:00:15.4]} 64. Kd3 {[%clk 0:00:05]}
64... Kf4 {[%clk 0:00:15.1]} 65. Rh1 {[%clk 0:00:04.5]} 65... Kg3 {[%clk
0:00:14.5]} 66. Ke4 {[%clk 0:00:05.1]} 66... h3 {[%clk 0:00:14.8]} 67. Bf1
{[%clk 0:00:04.8]} 67... h2 {[%clk 0:00:14.4]} 68. Bxg2 {[%clk 0:00:04.7]} 68...
Kxg2 {[%clk 0:00:15.3]} 69. Re1 {[%clk 0:00:04.2]} 69... h1=Q {[%clk 0:00:15.3]}
70. Rxh1 {[%clk 0:00:05]} 70... Kxh1 {[%clk 0:00:16.2]} 71. Kf5 {[%clk
0:00:04.9]} 71... Be3 {[%clk 0:00:15.7]} 72. Ke6 {[%clk 0:00:05.8]} 72... Bb6
{[%clk 0:00:15.9]} 73. Kd7 {[%clk 0:00:06.7]} 73... Kg2 {[%clk 0:00:15.9]} 74.
Kc8 {[%clk 0:00:06.4]} 74... Kxf3 {[%clk 0:00:15.8]} 75. Kxb7 {[%clk 0:00:07.3]}
75... Ke4 {[%clk 0:00:15]} 76. Kc6 {[%clk 0:00:08.2]} 76... Kd4 {[%clk 0:00:15]}
77. c5 {[%clk 0:00:08.8]} 77... Bxc5 {[%clk 0:00:13.8]} 78. Kxc7 {[%clk
0:00:08.8]} 78... Kxd5 {[%clk 0:00:14.3]} 79. b6 {[%clk 0:00:08.9]} 79... Bxb6+
{[%clk 0:00:14.7]} 80. Kxb6 {[%clk 0:00:09.5]} 80... e4 {[%clk 0:00:15.6]} 0-1